[Event "4NCL Div 2 2024-25"]
[Site "England"]
[Date "2025.01.25"]
[Round "3.11"]
[White "Jackson, Edward"]
[Black "Hoffmann, Hendrik"]
[Result "1/2-1/2"]
[Annotator "TA"]
[ECO "E70"]
[WhiteElo "2132"]
[BlackElo "2202"]
[PlyCount "89"]
[EventDate "2024.11.23"]
[EventType "team-tourn"]
[EventCountry "ENG"]
[SourceTitle "playchess.com"]
[Source "ChessBase"]
[SourceQuality "1"]
[TimeControl "40/6000+30:3000+30"]

{[%evp 13,89,34,59,52,52,52,46,50,64,59,80,67,56,43,98,-11,0,8,0,-20,61,-8,70,47,58,69,64,56,78,46,65,72,86,45,45,45,45,45,47,33,33,25,30,26,36,31,30,26,27,24,36,32,75,36,36,36,36,36,36,36,36,36,36,36,36,0,0,-63,0,-56,0,0,0,0,0,-75,47,47]} 1. d4 {[%emt 0:10:09]} Nf6 {[%emt 0:10:24]} 2. c4 {[%emt 0:00:39]} g6 {[%emt 0:00:14]} 3. Nc3 {[%emt 0:00:17]} Bg7 {[%emt 0:00:16]} 4. e4 {[%emt 0:00:38]} d6 {[%emt 0:00:06]} 5. Nge2 {[%emt 0:00:34]} O-O {[%emt 0:01:22]} 6. Ng3 {[%emt 0:00:36]} e5 {[%emt 0:00:38] 6...h5 deserves study.} 7. d5 {[%emt 0:00:09]} Ng4 {[%emt 0:02:36][%cal Bf6g4,Bg4h6,Bh6f5][%mdl 32]} 8. f3 {[%emt 0:07:15] E70: King's Indian: Miscellaneous lines with 4 e4, including 5 Nge2 and 5 Bd3 0-0 6 Nge2.} Nh6 {[%emt 0:01:10]} 9. h4 {[%emt 0:04:13]} f5 {[%emt 0:04:52]} 10. exf5 {[%emt 0:10:11]} Nxf5 {[%emt 0:02:41]} 11. Bg5 {[%emt 0:06:42]} Qe8 {[%emt 0:06:23]} 12. Nxf5 {[%emt 0:11:54]} gxf5 {[%emt 0:02:17]} 13. Qd2 {[%emt 0:01:04]} a6 $146 {[%emt 0:07:17]} (13... Na6 $14) (13... f4 14. h5 h6 15. Bh4 Qxh5 16. Bd3 Bf5 17. O-O-O Qf7 18. Bxf5 Qxf5 19. Ne4 Nd7 {½-½ Hoogendoorn,F-Van Laatum,G (2395) Ghent op 15th 1992 (2)}) 14. Bh6 {[%emt 0:06:49]} (14. h5 $16) 14... Nd7 {[%emt 0:07:07]} 15. Bxg7 {[%emt 0:07:47]} Kxg7 {[%emt 0:00:40]} 16. h5 {[%emt 0:01:17]} h6 {[%emt 0:10:11]} (16... Nf6 $11) 17. Rh3 {[%emt 0:06:06]} ({White should try} 17. O-O-O $14) 17... f4 {[%emt 0:50:46]} (17... Qd8 $11) 18. g4 {[%emt 0:03:52]} Nf6 {[%emt 0:00:00]} 19. O-O-O {[%emt 0:02:58]} Nh7 {[%emt 0:00:00]} 20. Ne4 {[%emt 0:01:03]} Qe7 {[%emt 0:00:00]} 21. Qc2 {[%emt 0:02:07] White is more active.} Ng5 {[%emt 0:00:00]} 22. Nxg5 {[%emt 0:00:59]} Qxg5 {[%emt 0:00:00] Black is weak on the light squares} 23. Qe4 {[%emt 0:01:44]} b6 {[%emt 0:00:00]} 24. Bd3 {[%emt 0:00:11]} Rh8 {[%emt 0:00:00] Against Qh7+} 25. Rg1 {[%emt 0:02:24]} Bd7 {[%emt 0:00:00]} 26. Rh2 {[%emt 0:00:37]} a5 {[%emt 0:00:00]} 27. Qe1 {[%emt 0:02:40]} (27. b3 {keeps more tension.} Kf6 28. a4 Rag8 29. Qe1) 27... Rhg8 {[%emt 0:00:00]} 28. Bf5 {[%emt 0:01:33]} Rad8 {[%emt 0:00:00]} 29. Rhg2 {[%emt 0:01:51][%cal Oc4c5]} Kf7 {[%emt 0:00:00]} 30. Bxd7 {[%emt 0:02:43]} Rxd7 {[%emt 0:00:00]} 31. Qe4 {[%emt 0:00:11]} Kf8 {[%emt 0:00:00]} 32. Kc2 {[%emt 0:00:44]} Qg7 {[%emt 0:00:00]} 33. Qf5+ {[%emt 0:06:41]} Qf7 {[%emt 0:00:00]} 34. Kd3 {[%emt 0:01:08]} Rg5 {[%emt 0:02:20]} 35. Qxf7+ {[%emt 0:00:29]} Kxf7 $14 {[%emt 0:00:10][%mdl 4096] Endgame KRR-KRR} 36. Ke4 {[%emt 0:00:05]} Kf6 {[%emt 0:07:00]} 37. Rc1 {[%emt 0:00:20]} Rg8 {[%emt 0:00:00]} 38. Rc3 {[%emt 0:00:29]} Rdd8 {[%emt 0:00:00]} 39. Ra3 {[%emt 0:00:29]} Ra8 {[%emt 0:00:00]} 40. Rc2 {[%emt 0:01:58]} (40. Ra4 $11) 40... Kg5 {[%emt 0:00:00]} (40... a4 $1 $15) 41. Rcc3 {[%emt 0:51:25]} (41. Ra4 $11) 41... Rgf8 {[%emt 0:48:23]} (41... a4 $1 $15) 42. Ra4 $11 {[%emt 0:02:00]} Ra7 {[%emt 0:00:00]} 43. Rca3 {[%emt 0:00:00]} Rb8 {[%emt 0:00:00]} 44. b4 {[%emt 0:00:00] [#]} (44. Rb3 $11) 44... Rba8 {[%emt 0:00:00]} (44... b5 $1 $17 {[%cal Rb5a4]} 45. Rxa5 Rxa5 46. Rxa5 (46. bxa5 {gets mated.} bxc4 47. Ra4 Rb2 48. Rxc4 Rd2 49. a6 c6 50. dxc6 Kf6 51. g5+ hxg5 52. h6 d5#) 46... bxc4) 45. b5 $1 {[%emt 0:00:00] Weighted Error Value: White=0.20 (precise) /Black=0.20 (precise)   Mistake:       	White=5     	Black=6      Inaccurate:     	White=4     	Black=1      OK:         	White=9     	Black=14     Best:        	White=2     	Black=2      Strong:       	White=1     	---} 1/2-1/2

[Event "4NCL Div 2 2024-25"]
[Site "England"]
[Date "2025.01.25"]
[Round "3.12"]
[White "Horton, Jamie A"]
[Black "McLean, Robert"]
[Result "1/2-1/2"]
[Annotator "TA"]
[ECO "A40"]
[WhiteElo "2163"]
[BlackElo "2011"]
[PlyCount "36"]
[EventDate "2024.11.23"]
[EventType "team-tourn"]
[EventCountry "ENG"]
[SourceTitle "playchess.com"]
[Source "ChessBase"]
[SourceQuality "1"]
[TimeControl "40/6000+30:3000+30"]

{[%evp 11,36,43,50,-47,-41,-36,-31,-60,-42,-116,-106,-143,-141,-105,-28,-51,-50,-69,-72,-43,-16,-3,14,21,46,52,44]} 1. d4 {[%emt 0:10:04]} e6 {[%emt 0:10:14]} 2. c4 {[%emt 0:00:23]} b6 {[%emt 0:00:13]} 3. e4 {[%emt 0:10:08]} Bb4+ {[%emt 0:00:05]} 4. Nc3 {[%emt 0:05:57]} Bb7 {[%emt 0:00:40]} 5. f3 {[%emt 0:05:16]} f5 {[%emt 0:00:05]} 6. exf5 {[%emt 0:11:19]} Nh6 {[%emt 0:00:24]} 7. Be3 {[%emt 0:05:20] A40: Unusual replies to 1 d4.} (7. fxe6 $14 Nf5 8. Bf4) 7... Nxf5 $15 {[%emt 0:05:14]} 8. Bf2 {[%emt 0:01:12]} O-O {[%emt 0:02:56]} 9. Nge2 {[%emt 0:03:11] Black is slightly better.} c5 {[%emt 0:13:15]} 10. a3 {[%emt 0:04:38]} (10. Qc2 $15) 10... Bxc3+ $17 {[%emt 0:02:06]} 11. Nxc3 {[%emt 0:03:01]} cxd4 {[%emt 0:00:30]} 12. Bxd4 {[%emt 0:03:08]} Nxd4 $146 {[%emt 0:01:28]} (12... Nh4 $17 {[%cal Rb7f3] aiming for ...Bxf3!.} 13. Qc2 Bxf3) (12... Nc6 13. Bf2 Rc8 14. Rc1 Ne5 15. Nb5 Nh4 16. Nd4 Nhxf3+ {0-1 Fischer,J (2346)-Sulava,N (2486) Bad Woerishofen op 16th 2000 (5)}) 13. Qxd4 $11 {[%emt 0:00:09]} Nc6 {[%emt 0:02:09][%cal Bb8c6,Bc6d4,Bd4f5][%mdl 32]} 14. Qd6 {[%emt 0:10:00]} Qh4+ {[%emt 0:08:11]} 15. Qg3 {[%emt 0:01:59]} Qf6 {[%emt 0:19:52]} 16. O-O-O {[%emt 0:07:07]} Nd4 {[%emt 0:04:26]} 17. Bd3 {[%emt 0:06:42]} Rac8 {[%emt 0:06:46][%cal Ob6b5]} 18. Kb1 {[%emt 0:05:29]} Nf5 {[%emt 0:10:28] Weighted Error Value: White=0.24 (precise) /Black=0.19 (very precise)   Mistake:       	White=1     	Black=1      Inaccurate:     	White=2     	Black=1      OK:         	White=2     	Black=4      Best:        	White=1     	Black=3} 1/2-1/2

[Event "4NCL Div 2 2024-25"]
[Site "England"]
[Date "2025.01.25"]
[Round "3.13"]
[White "Smith, Alan A"]
[Black "Maciol, Ryszard"]
[Result "0-1"]
[Annotator "TA"]
[ECO "C17"]
[WhiteElo "2227"]
[BlackElo "2125"]
[PlyCount "71"]
[EventDate "2024.11.23"]
[EventType "team-tourn"]
[EventCountry "ENG"]
[SourceTitle "playchess.com"]
[Source "ChessBase"]
[SourceQuality "1"]
[TimeControl "40/6000+30:3000+30"]

{[%evp 13,71,-39,7,-29,36,28,38,39,37,8,0,21,14,0,14,8,4,8,49,59,50,-187,-182,-186,-171,-206,-195,-208,-129,-204,-206,-190,-208,-294,-293,-298,-271,-291,-252,-240,-228,-309,-262,-311,-189,-178,-186,-593,-593,-591,-571,-837,-828,-815,-802,-895,-899,-898,-887,-879]} 1. e4 {[%emt 0:10:05]} e6 {[%emt 0:10:15]} 2. Nc3 {[%emt 0:01:55]} d5 {[%emt 0:08:10]} 3. d4 {[%emt 0:00:07]} Bb4 {[%emt 0:00:12]} 4. e5 {[%emt 0:00:43]} c5 {[%emt 0:00:12]} 5. Qg4 {[%emt 0:00:57]} Ne7 {[%emt 0:05:52]} 6. dxc5 {[%emt 0:00:20]} Nbc6 {[%emt 0:08:52]} 7. Bd2 {[%emt 0:00:32]} Ng6 {[%emt 0:06:44]} (7... Bxc5 8. Na4 Bxf2+ (8... Nxe5 $2 9. Qxg7 Bxf2+ 10. Kxf2 $18) 9. Kxf2 $14) (7... O-O $15) 8. Nf3 {[%emt 0:01:05]} f5 {[%emt 0:04:34]} (8... Bxc5 $11 9. Bd3 O-O) 9. exf6 $14 {[%emt 0:04:22]} Qxf6 {[%emt 0:03:18]} 10. O-O-O {[%emt 0:02:05] Threatens to win with Bb5. White is slightly better.} O-O $1 {[%emt 0:05:36]} 11. h4 {[%emt 0:06:02][%cal Bh2h4,Bh4h5][%mdl 32]} Bxc5 {[%emt 0:03:44]} 12. Bg5 {[%emt 0:06:38]} Qf7 {[%emt 0:05:38]} 13. Qg3 {[%emt 0:05:28]} (13. Be3 {looks sharper.} Nge5 14. Nxe5 Nxe5 15. Qg5) 13... Nf4 {[%emt 0:04:35] [#]} 14. h5 $1 {[%emt 0:08:40]} Bd6 $132 {[%emt 0:09:55][%cal Of4d3][%mdl 2048] Black is not holding back} 15. Kb1 {[%emt 0:59:01]} Bc7 {[%emt 0:03:15][%cal Of4e2]} 16. Nb5 {[%emt 0:00:00]} Bb8 {[%emt 0:01:18][%cal Of4g2]} 17. Rh4 $2 {[%emt 0:00:00] This costs White the game.} (17. h6 $14 g6 18. Qh4) 17... a6 $1 $19 {[%emt 0:02:22]} (17... Nxh5 18. Qh3 g6 (18... e5 $2 19. Qh1 $16) 19. Bh6 $16) 18. Nbd4 {[%emt 0:00:00] [#]} Nd3 $1 {[%emt 0:01:33][%mdl 512]} 19. Bxd3 {[%emt 0:00:00][%cal Od4c6] Nxc6! would now be deadly.} (19. Nxc6 bxc6) 19... Bxg3 {[%emt 0:01:20]} 20. fxg3 {[%emt 0:00:00]} h6 {[%emt 0:05:20]} 21. Bf4 {[%emt 0:00:00]} (21. Nxc6 $17 bxc6 22. Bxh6 gxh6 23. Ne5) 21... Nxd4 {[%emt 0:02:50]} 22. Nxd4 {[%emt 0:00:00]} Bd7 {[%emt 0:01:21]} 23. Bd6 {[%emt 0:00:00] [#]} (23. Nf3 $142) 23... Qf2 $1 {[%emt 0:01:48] Strongly threatening ...e5.} 24. Be5 {[%emt 0:00:00]} (24. Bg6 e5) 24... Qe3 {[%emt 0:03:48]} 25. Bf4 {[%emt 0:00:00]} Rxf4 {[%emt 0:00:13]} ({Not} 25... Qxd4 26. Bh7+ Kxh7 27. Rxd4 $17) 26. gxf4 {[%emt 0:00:00]} Rf8 {[%emt 0:01:39]} (26... Qxd4 $2 27. Bh7+ Kxh7 28. Rxd4 $18) 27. Ne2 {[%emt 0:00:00]} Qf2 {[%emt 0:04:38]} 28. g3 {[%emt 0:00:00] [#]} e5 $1 {[%emt 0:00:30][%mdl 512]} 29. fxe5 {[%emt 0:00:00] [#]} Rf3 {[%emt 0:00:18][%cal Of3d3] aiming for ...Rxd3!} 30. Nd4 $2 {[%emt 0:00:00]} (30. Nc1 {is a better chance.}) 30... Rxg3 {[%emt 0:01:11] Black is clearly winning.} 31. Rhh1 {[%emt 0:00:00][%cal Oe5e6] [#] Black must now prevent e6!} Bg4 {[%emt 0:01:00][%cal Og4d1]} (31... Qxd4 32. Bh7+ Kxh7 33. Rxd4 $18) 32. Rhf1 {[%emt 0:03:08]} Rxd3 {[%emt 0:00:11]} (32... Qxd4 $2 {is the wrong capture.} 33. Bh7+ Kxh7 34. Rxd4 $18) 33. cxd3 {[%emt 0:00:30]} Qxd4 {[%emt 0:00:12]} 34. Rd2 {[%emt 0:00:39]} Qxe5 {[%emt 0:00:27]} 35. Kc2 {[%emt 0:00:42]} Bxh5 {[%emt 0:00:21]} 36. Rff2 {[%emt 0:01:36] Weighted Error Value: White=0.67/Black=0.17 (very precise) .  Loses game:     	White=1     	---        Mistake:       	White=3     	Black=1      Inaccurate:     	White=3     	Black=3      OK:         	White=10    	Black=8      Best:        	---       	Black=3      Strong:       	---       	Black=2      Brilliant:      	White=1     	Black=1} 0-1

[Event "4NCL Div 2 2024-25"]
[Site "England"]
[Date "2025.01.25"]
[Round "3.14"]
[White "Serbanescu, Diana-Maria"]
[Black "Rawlinson, Aidan M"]
[Result "1-0"]
[Annotator "TA"]
[ECO "B06"]
[WhiteElo "1992"]
[BlackElo "2076"]
[PlyCount "71"]
[EventDate "2024.11.23"]
[EventType "team-tourn"]
[EventCountry "ENG"]
[SourceTitle "playchess.com"]
[Source "ChessBase"]
[SourceQuality "1"]
[TimeControl "40/6000+30:3000+30"]

{[%evp 9,71,41,48,35,23,28,46,27,51,36,33,33,23,2,107,0,20,-55,-14,-97,-86,-97,-32,-156,-169,-329,-28,-17,-31,-11,-37,-45,-23,-128,-112,-125,-147,-147,-45,-3676,-4686,-4686,0,-2072,-2063,-2063,-2033,-2028,-2018,-2027,-2002,-2001,-1926,-1976,0,0,0,0,158,146,29987,29988,29988,29989]} 1. e4 {[%emt 0:10:03]} g6 {[%emt 0:10:12]} 2. d4 {[%emt 0:00:07]} Bg7 {[%emt 0:00:08]} 3. Nc3 {[%emt 0:01:04]} d6 {[%emt 0:00:10]} 4. Be3 {[%emt 0:00:21]} a6 {[%emt 0:00:18]} 5. Qd2 {[%emt 0:00:28]} b5 {[%emt 0:00:13]} 6. h4 {[%emt 0:01:28] B06: Modern Defence.} Nf6 {[%emt 0:00:16]} 7. f3 {[%emt 0:12:09]} h5 {[%emt 0:02:10]} 8. Nh3 {[%emt 0:01:14] White is slightly better.} c6 {[%emt 0:02:07]} 9. O-O-O {[%emt 0:09:27]} Bxh3 {[%emt 0:03:53]} 10. Rxh3 {[%emt 0:00:06]} Nbd7 {[%emt 0:09:16]} 11. Be2 {[%emt 0:03:28]} a5 $146 {[%emt 0:18:23]} (11... O-O $11) (11... Qa5 12. a3 Rb8 13. g4 hxg4 14. fxg4 b4 15. Na2 Nxe4 16. Qd3 d5 17. Nxb4 Rxb4 18. h5 Ndc5 {0-1 Wadsworth,M (2452)-Ghasi,A (2508) Titled Tuesday intern op 21st Nov Late blitz 2023 (8)}) 12. Qe1 {[%emt 0:14:36]} ({White should play} 12. e5 $1 $16 {[%cal Re5f6]}) 12... Qc7 {[%emt 0:13:33]} 13. Bf4 {[%emt 0:17:58]} (13. g4 $11) 13... a4 {[%emt 0:12:24]} 14. e5 {[%emt 0:18:49]} dxe5 $17 {[%emt 0:03:29]} 15. dxe5 {[%emt 0:00:08]} b4 {[%emt 0:00:44]} (15... Nxe5 $17 {[%cal Oe5d3]} 16. Kb1 Nfd7) 16. Bc4 {[%emt 0:10:11]} O-O {[%emt 0:15:34]} 17. Qg3 $2 {[%emt 0:04:06]} (17. Kb1 bxc3 18. exf6 Qxf4 19. fxg7) 17... bxc3 $2 {[%emt 0:06:55]} ({Black should play} 17... Nd5 $1 $19 18. Nxd5 cxd5 19. Bxd5 Rac8 (19... Ra6 20. e6 $16)) 18. exf6 $11 {[%emt 0:00:02]} Qb6 {[%emt 0:02:54]} (18... cxb2+ $2 19. Kb1 $18) 19. bxc3 {[%emt 0:00:10]} (19. Rxd7 Qg1+ 20. Rd1 cxb2+ 21. Kxb2 Qxd1 22. fxg7 a3+ 23. Kc3 Rfd8 $19) 19... Nxf6 {[%emt 0:00:36]} 20. Qxg6 {[%emt 0:01:10] and Rg3 would now be decisive} e6 $36 {[%emt 0:01:02][%mdl 2048] White is under pressure.} 21. Bxe6 {[%emt 0:01:46]} fxe6 $17 {[%emt 0:00:08]} 22. Bh6 {[%emt 0:00:27][%csl Gh6][%cal Rg6g7]} Ra7 {[%emt 0:01:00]} 23. Rg3 {[%emt 0:00:07][%cal Od1d4] [#]} Rb7 {[%emt 0:01:33]} (23... Rff7 $1 $17 {and ...Rab7 should not be overlooked} 24. Rg5 (24. Rd3 Rab7) 24... Nh7 (24... Qe3+ 25. Rd2 $11)) 24. Bxg7 $4 {[%emt 0:01:38][%mdl 8192]} (24. Rd4 $15 Qa7 25. Qxg7+ (25. Bxg7 Rxg7 26. Qxg7+ Qxg7 $17) 25... Rxg7 26. Rxg7+ Qxg7 27. Bxg7 Kxg7 28. Rxa4) 24... Qe3+ $19 {[%emt 0:00:48]} 25. Rd2 {[%emt 0:00:10]} Qe1+ {[%emt 0:01:24]} (25... Rb1+ $142 26. Kxb1 Qg1+ 27. Rd1 Qxd1+ 28. Kb2 Rb8+ 29. Ka3 Qd6+ 30. Kxa4 Ra8+ 31. Kb3 Qb8+ (31... Rb8+ $2 32. Ka4 $19) 32. Kc4 Qf4+ 33. Qe4 Nxe4 34. Be5+ Qxg3 (34... Nxg3+ $2 35. Bxf4 Ra4+ 36. Kb3 $19) 35. Bxg3 Nxg3) 26. Rd1 {[%emt 0:00:00] [#]} Rb1+ $3 {[%emt 0:03:00][%mdl 512]} 27. Kxb1 {[%emt 0:00:02]} Qxd1+ {[%emt 0:00:09]} 28. Kb2 {[%emt 0:00:02]} Rb8+ {[%emt 0:00:58]} 29. Ka3 {[%emt 0:00:07]} Qd6+ {[%emt 0:00:15]} 30. Kxa4 {[%emt 0:00:25]} Ra8+ {[%emt 0:01:08]} 31. Kb3 {[%emt 0:00:04]} Qa3+ $2 {[%emt 0:00:07]} (31... Qb8+ $19 32. Kc4 Qf4+ 33. Qe4 Nxe4 34. Be5+ Qxg3 (34... Nxg3+ $2 35. Bxf4 Ra4+ 36. Kb3 $19) 35. Bxg3 Nxg3) 32. Kc4 $11 {[%emt 0:00:04][%cal Bb3c4,Bc4d4,Bd4e5,Be5f6,Bf6e7][%mdl 32]} Qa6+ {[%emt 0:00:54]} 33. Kd4 {[%emt 0:00:59]} Rd8+ $2 {[%emt 0:00:11]} (33... Qb6+ $1 $11 34. Kd3 Rd8+ 35. Ke2 Qb5+ 36. Kf2 Qb6+ 37. Ke2) 34. Ke5 $16 {[%emt 0:01:46]} Qa5+ $2 {[%emt 0:01:02][%mdl 8192]} (34... Rd5+ $16 35. Kxf6 Rf5+ 36. Qxf5 exf5) 35. Kxf6 {[%emt 0:00:16]} Qxc3+ {[%emt 0:00:34]} 36. Ke7 {[%emt 0:00:38] Weighted Error Value: White=0.60/Black=0.89  Loses game:     	White=1     	Black=1      Missed win:     	---       	Black=1      Mistake:       	White=6     	Black=4      Inaccurate:     	---       	Black=1      OK:         	White=2     	Black=8      Best:        	White=6     	Black=2} 1-0

[Event "4NCL Div 2 2024-25"]
[Site "England"]
[Date "2025.01.25"]
[Round "3.15"]
[White "Longson, Sarah N"]
[Black "Franco, Gaston"]
[Result "0-1"]
[Annotator "TA"]
[ECO "B30"]
[WhiteElo "1929"]
[BlackElo "2070"]
[PlyCount "116"]
[EventDate "2024.11.23"]
[EventType "team-tourn"]
[EventCountry "ENG"]
[SourceTitle "playchess.com"]
[Source "ChessBase"]
[SourceQuality "1"]
[TimeControl "40/6000+30:3000+30"]

{[%evp 10,116,13,17,10,-1,-2,0,1,0,6,1,164,-2,7,14,50,30,47,49,52,38,31,37,51,13,75,13,67,45,94,95,96,92,173,133,235,242,236,182,183,24,24,19,19,-27,-27,-27,-27,-129,-122,-272,-263,-316,-306,-306,-304,-465,-465,-459,-443,-455,-454,-775,-244,-244,-244,-721,-579,-764,-714,-837,-829,-831,-816,-816,-816,-816,-816,-802,-794,-778,-778,-732,-624,-717,-670,-6349,-5740,-1857,-1857,-29953,-29955,-29952,-29955,-29948,-1707,-29956,-29958,-29957,-29960,-12837,-12822,-29966,-29966,-29968,-29969,-29968,-29969]} 1. e4 {[%emt 0:10:02]} c5 {[%emt 0:10:09]} 2. Nc3 {[%emt 0:00:06]} Nc6 {[%emt 0:00:08]} 3. Bb5 {[%emt 0:00:04]} Nd4 {[%emt 0:00:41]} 4. Nf3 {[%emt 0:00:05]} e6 {[%emt 0:01:04]} 5. O-O {[%emt 0:06:51]} a6 {[%emt 0:00:53]} 6. Bd3 {[%emt 0:00:37]} Nc6 {[%emt 0:00:47] B30: Sicilian: 2...Nc6 3 Bb5, lines without ...g6.} 7. e5 {[%emt 0:04:16]} d5 {[%emt 0:12:30] 7...d6 is more advanced technology.} 8. exd6 $1 {[%emt 0:00:39]} Bxd6 {[%emt 0:00:11] The position is equal.} 9. Ne4 {[%emt 0:03:49]} Be7 {[%emt 0:00:39]} 10. Re1 {[%emt 0:03:43]} g5 $146 {[%emt 0:09:16]} (10... Nb4 $11 {and Black stays safe.}) (10... Nf6 11. Nfg5 Nxe4 12. Nxe4 O-O 13. b3 f5 14. Ng3 e5 15. Bb2 Bd6 16. f4 exf4 {0-1 Rodriguez Dogmoch,K (1979)-Teran Alvarez,I (2297) ESP-ch 89th Marbella 2024 (3)}) 11. h3 $2 {[%emt 0:09:27]} (11. b4 $1 $18) 11... h5 {[%emt 0:06:41]} 12. b3 {[%emt 0:09:49]} g4 {[%emt 0:07:49]} 13. Bb2 {[%emt 0:08:11]} Rh6 {[%emt 0:13:10]} 14. hxg4 {[%emt 0:03:29]} hxg4 {[%emt 0:00:16]} 15. Ne5 {[%emt 0:03:14]} Nxe5 {[%emt 0:05:13]} 16. Bxe5 {[%emt 0:00:22] A sharp opening} f5 {[%emt 0:07:57]} 17. Ng3 {[%emt 0:02:37]} Nf6 {[%emt 0:07:09]} (17... Kf8 $11 {remains equal.}) 18. Qe2 {[%emt 0:16:19]} (18. Bc4 $16) 18... Nh5 {[%emt 0:04:58]} (18... Nd5 $11) 19. Qe3 $36 {[%emt 0:08:01][%mdl 2048] White is pushing.} Rh7 {[%emt 0:11:58]} (19... Bg5 $1 $14 20. Qxc5 Nxg3 21. fxg3 (21. Bxg3 f4 $17) 21... Kf7) 20. Nxh5 $16 {[%emt 0:08:07]} Rxh5 {[%emt 0:00:03] [#]} 21. f3 $1 {[%emt 0:00:34]} Bg5 {[%emt 0:03:58]} (21... gxf3 $16 22. Qxf3 Rh4) 22. Qxc5 {[%emt 0:00:44]} gxf3 {[%emt 0:00:34] [#]} (22... Be7 $16 23. Qe3 b6) 23. Bxf5 $1 $18 {[%emt 0:02:26][%mdl 512]} Be3+ {[%emt 0:03:31]} (23... f2+ $2 24. Qxf2 Rh6 25. Bg7 Qxd2 26. Bg6+ Rxg6 27. Qf8+ Kd7 28. Rad1 $18 (28. Qf7+ Kc6 $18)) (23... Rh6 24. Be4) 24. Qxe3 {[%emt 0:00:50]} Rxf5 {[%emt 0:00:08]} 25. Rf1 {[%emt 0:01:35]} ({Only move:} 25. gxf3 $18 {Kf2 would now be deadly.} Bd7 26. Kf2 Qh4+ 27. Bg3) 25... Qg5 $11 {[%emt 0:01:49]} 26. Qxg5 {[%emt 0:01:34]} Rxg5 {[%emt 0:00:01]} 27. Bf4 {[%emt 0:00:37]} (27. Bc3 $142 Rxg2+ (27... fxg2 28. Rf2 $16) 28. Kh1) 27... Rxg2+ {[%emt 0:00:24]} 28. Kh1 {[%emt 0:00:01]} Bd7 {[%emt 0:00:41]} 29. Rxf3 {[%emt 0:00:20]} (29. Rg1 $1 $11 {was the only way to keep the balance.}) 29... Rg4 $17 {[%emt 0:00:11]} 30. Kh2 {[%emt 0:01:49]} (30. Rg1 $17 Bc6 31. Rxg4 Bxf3+ 32. Rg2) 30... Bc6 $19 {[%emt 0:00:27]} 31. Rf2 {[%emt 0:00:59]} O-O-O {[%emt 0:00:40]} 32. Be5 {[%emt 0:00:36] Repels Rh8+} Rdg8 {[%emt 0:00:22]} 33. Bf6 {[%emt 0:02:47] Inhibits Rh4+.} (33. Rf4 $142 Rg2+ 34. Kh3 R2g3+ (34... Rxd2 35. Rf7 $17) 35. Kh2) 33... R8g6 {[%emt 0:01:06] ( -> ...Rh6+)} 34. Kh3 {[%emt 0:01:12]} Bg2+ {[%emt 0:00:25]} 35. Rxg2 {[%emt 0:00:03]} Rxg2 {[%emt 0:00:05][%mdl 4096] Endgame KRR-KRB} 36. Bc3 {[%emt 0:01:01]} (36. Bh4 $142) 36... Rg1 $2 {[%emt 0:00:40]} (36... R6g3+ 37. Kh4 Rg8) 37. Rxg1 {[%emt 0:00:08]} Rxg1 {[%emt 0:00:01] KR-KB} 38. Kh2 $2 {[%emt 0:00:13]} (38. a4) 38... Rc1 {[%emt 0:00:45]} 39. Kg3 {[%emt 0:00:18]} Rxc2 {[%emt 0:00:08]} 40. a4 {[%emt 0:00:18]} Ra2 {[%emt 0:00:15]} 41. a5 {[%emt 0:24:08]} Kd7 {[%emt 0:20:57]} 42. Kf3 {[%emt 0:01:18]} Ra3 {[%emt 0:02:08]} 43. b4 {[%emt 0:00:20]} Rb3 {[%emt 0:00:15]} 44. Ke4 {[%emt 0:00:45]} Rb1 {[%emt 0:00:33]} 45. Kd4 {[%emt 0:00:48]} Kc6 {[%emt 0:00:09] ...Re1 would now be deadly.} 46. Kc4 {[%emt 0:00:17]} Re1 {[%emt 0:03:51]} 47. Bd4 {[%emt 0:04:58]} Rc1+ {[%emt 0:02:08]} 48. Bc3 {[%emt 0:00:12]} e5 {[%emt 0:06:38]} 49. Kb3 {[%emt 0:03:17]} Kd5 {[%emt 0:00:14]} 50. d3 {[%emt 0:01:47]} Rh1 {[%emt 0:01:37]} 51. Kc2 {[%emt 0:04:19]} Rh2+ {[%emt 0:01:02]} 52. Kb3 {[%emt 0:00:18]} Rg2 {[%emt 0:07:03]} (52... Rh3 $142 53. Kc2 Rh2+ 54. Kb3 Re2 55. Bb2 Re3 56. Kc2 e4 57. dxe4+ Kc4 (57... Kxe4 $2 58. Bc3 $19) (57... Rxe4 $2 58. Kb3 $19) 58. Bc1 Rxe4 59. Bg5 Re2+ (59... Kxb4 $2 60. Bd2+ Ka4 61. Bh6 $19) 60. Kd1 Re5 61. Bf6 Rd5+ 62. Kc2 Kxb4 63. Bh4 Kxa5 64. Be7 Re5 65. Bd6 Re6 66. Bf8 Kb5 67. Kc3 Re3+ 68. Kc2 a5 69. Bg7 a4 70. Bf8 Rf3 71. Bg7 a3 72. Kd2 a2 73. Ke2 Rg3 74. Bh8 Kc4 75. Kd2 Rd3+ 76. Kc2 Rh3 77. Be5 Rh2+ 78. Bxh2 a1=Q (78... a1=B 79. Kb1 $15) 79. Kd2 Qb2+ 80. Ke3 Qxh2 81. Kf3 Qh4 82. Ke3 Kc3 83. Kf3 Kd3 84. Kg2 Ke3 85. Kg1 Kf3 86. Kf1 Qh1#) 53. Bb2 {[%emt 0:01:55]} Rg3 {[%emt 0:00:40]} 54. Kc2 {[%emt 0:00:17]} e4 {[%emt 0:00:24]} 55. dxe4+ {[%emt 0:00:13]} Kxe4 {[%emt 0:00:03] ( -> ...Kd5)} 56. Bc3 {[%emt 0:01:00]} Kd5 {[%emt 0:00:07] Black mates.} 57. Bf6 {[%emt 0:06:14]} Kc4 {[%emt 0:00:13]} 58. Be7 {[%emt 0:00:19]} Rb3 {[%emt 0:00:45] What a bad dream for White.   Weighted Error Value: White=0.88/Black=0.41  Loses game:     	---       	Black=1      Missed win:     	White=1     	---        Mistake:       	White=8     	Black=6      Inaccurate:     	White=1     	Black=1      OK:         	White=8     	Black=9      Best:        	White=3     	Black=5      Strong:       	White=2     	---        Brilliant:      	White=1     	---} 0-1